lending/lending_fUSD_20240411
["ID","MTS","AMOUNT","RATE_DAILY","PERIOD"]
[322199656,1712869969091,-500.0,0.00029589,2]
[322199657,1712869969100,-2381.75,0.00029589,2]
[322199658,1712869969109,-852.74,0.00029589,2]
[322199659,1712869969119,-2994.14,0.00029589,2]
[322199660,1712869969128,-500.0,0.00029589,2]
[322199661,1712869969137,-4680.33,0.00029589,2]
[322199662,1712869969147,-21256.33,0.00029589,2]
[322199663,1712869969157,-2204.86,0.00029589,2]
[322199664,1712869969166,-989.07,0.00029589,2]
[322199665,1712869969176,-5675.36,0.00029589,2]
[322199666,1712869969185,-660.51,0.00029589,2]
[322199667,1712869969194,-2867.21,0.00029589,2]
[322199668,1712869969204,-500.0,0.00029589,2]
[322199669,1712869969213,-1346.35,0.00029589,2]
[322199670,1712869969223,-500.0,0.00029589,2]
[322199671,1712869969232,-387.79401828,0.00029589,2]
[322199672,1712869969242,-500.0,0.00029589,2]
[322199673,1712869969251,-2960.74,0.00029589,2]
[322199674,1712869969260,-887.19,0.00029589,2]
[322199675,1712869969269,-1179.12,0.00029589,2]
[322199676,1712869969278,-1283.97,0.00029589,2]
[322199677,1712869969288,-500.0,0.00029589,2]
[322199678,1712869969297,-872.68,0.00029589,2]
[322199679,1712869969306,-1502.33,0.00029589,2]
[322199680,1712869969316,-10128.26,0.00029589,2]
[322199681,1712869969325,-683.97,0.00029589,2]
[322199682,1712869969335,-623.58,0.00029589,2]
[322199683,1712869969344,-500.0,0.00029589,2]
[322199684,1712869969353,-1185.71,0.00029589,2]
[322199685,1712869969363,-500.0,0.00029589,2]
[322199686,1712869969372,-1427.1,0.00029589,2]
[322199687,1712869969382,-500.0,0.00029589,2]
[322199688,1712869969394,-2367.24,0.00029589,2]
[322199689,1712869969404,-500.0,0.00029589,2]
[322199690,1712869969414,-2143.26,0.00029589,2]
[322199691,1712869969424,-1106.87,0.00029589,2]
[322199692,1712869969434,-2686.26,0.00029589,2]
[322199693,1712869969443,-2721.81,0.00029589,2]
[322199694,1712869969453,-3567.1,0.00029589,2]
[322199695,1712869969464,-3548.97,0.00029589,2]
[322199696,1712869969473,-19344.8,0.00029589,2]
[322199697,1712869969483,-1844.22,0.00029589,2]
[322199698,1712869969492,-537.03,0.00029589,2]
[322199699,1712869969502,-1228.02,0.00029589,2]
[322199700,1712869969511,-3053.42,0.00029589,2]
[322199701,1712869969520,-4239.16,0.00029589,2]
[322199702,1712869969529,-1745.12,0.00029589,2]
[322199703,1712869969539,-3035.53,0.00029589,2]
[322199704,1712869969549,-4808.47,0.00029589,2]
[322199705,1712869969558,-2664.5,0.00029589,2]
[322199706,1712869969567,-1373.93,0.00029589,2]
[322199707,1712869969576,-505.74,0.00029589,2]
[322199708,1712869969586,-3190.86,0.00029589,2]
[322199709,1712869969594,-738.07,0.00029589,2]
[322199710,1712869969603,-1109.77,0.00029589,2]
[322199711,1712869969613,-2221.72,0.00029589,2]
[322199712,1712869969622,-582.17803016,0.00029589,2]
[322199713,1712869969632,-17424.44,0.00029589,2]
[322199714,1712869969641,-2263.75,0.00029589,2]
[322199715,1712869969650,-1128.64,0.00029589,2]
[322199716,1712869969659,-1502.24,0.00029589,2]
[322199717,1712869969669,-612.74,0.00029589,2]
[322199718,1712869969679,-500.0,0.00029589,2]
[322199719,1712869969688,-17072.27,0.00029589,2]
[322199720,1712869969697,-3052.22,0.00029589,2]
[322199721,1712869969706,-500.0,0.00029589,2]
[322199722,1712869969715,-3640.47,0.00029589,2]
[322199723,1712869969725,-500.0,0.00029589,2]
[322199724,1712869969734,-1957.97,0.00029589,2]
[322199725,1712869969742,-955.9,0.00029589,2]
[322199726,1712869969752,-500.0,0.00029589,2]
[322199727,1712869969761,-500.0,0.00029589,2]
[322199728,1712869969771,-3659.25,0.00029589,2]
[322199729,1712869969780,-5766.3,0.00029589,2]
[322199730,1712869969789,-3575.16,0.00029589,2]
[322199731,1712869969798,-711.78,0.00029589,2]
[322199732,1712869969808,-7639.5,0.00029589,2]
[322199733,1712869969817,-500.0,0.00029589,2]
[322199734,1712869969826,-1392.31,0.00029589,2]
[322199735,1712869969835,-7389.58,0.00029589,2]
[322199736,1712869969844,-3014.69,0.00029589,2]
[322199737,1712869969853,-2191.02,0.00029589,2]
[322199738,1712869969863,-5336.03,0.00029589,2]
[322199739,1712869969872,-4291.51,0.00029589,2]
[322199740,1712869969881,-500.0,0.00029589,2]
[322199741,1712869969890,-1051.14,0.00029589,2]
[322199742,1712869969899,-604.03,0.00029589,2]
[322199743,1712869969909,-500.0,0.00029589,2]
[322199744,1712869969919,-52708.74,0.00029589,2]
[322199745,1712869969929,-3260.75,0.00029589,2]
[322199746,1712869969938,-5115.15,0.00029589,2]
[322199747,1712869969947,-188.7554372,0.00029589,2]
[322199748,1712869969956,-882.87,0.00029589,2]
[322199749,1712869969966,-5854.93,0.00029589,2]
[322199750,1712869969975,-8061.26,0.00029589,2]
[322199751,1712869969984,-916.85,0.00029589,2]
[322199752,1712869969994,-7112.46,0.00029589,2]
[322199753,1712869970003,-745.2,0.00029589,2]
[322199754,1712869970012,-6099.37,0.00029589,2]
[322199755,1712869970021,-1872.85,0.00029589,2]
[322199756,1712869970031,-5187.78,0.00029589,2]
[322199757,1712869970040,-1834.17,0.00029589,2]
[322199758,1712869970050,-500.0,0.00029589,2]
[322199759,1712869970059,-1268.14,0.00029589,2]
[322199760,1712869970069,-1960.92,0.00029589,2]
[322199761,1712869970078,-500.0,0.00029589,2]
[322199762,1712869970088,-3993.87,0.00029589,2]
[322199763,1712869970097,-1940.4,0.00029589,2]
[322199764,1712869970107,-1144.44,0.00029589,2]
[322199765,1712869970116,-30065.72,0.00029589,2]
[322199766,1712869970126,-500.0,0.00029589,2]
[322199767,1712869970135,-1318.07,0.00029589,2]
[322199768,1712869970144,-3922.38,0.00029589,2]
[322199769,1712869970153,-1507.79,0.00029589,2]
[322199770,1712869970164,-7272.96,0.00029589,2]
[322199771,1712869970173,-2185.46,0.00029589,2]
[322199772,1712869970182,-500.0,0.00029589,2]
[322199773,1712869970192,-1894.92,0.00029589,2]
[322199774,1712869970202,-500.0,0.00029589,2]
[322199775,1712869970212,-500.0,0.00029589,2]
[322199776,1712869970221,-739.67,0.00029589,2]
[322199777,1712869970230,-2576.43,0.00029589,2]
[322199778,1712869970240,-500.0,0.00029589,2]
[322199779,1712869970250,-752.22,0.00029589,2]
[322199780,1712869970259,-500.0,0.00029589,2]
[322199781,1712869970268,-2674.56,0.00029589,2]
[322199782,1712869970277,-918.8,0.00029589,2]
[322199783,1712869970286,-548.63,0.00029589,2]
[322199784,1712869970296,-636.15,0.00029589,2]
[322199785,1712869970306,-729.18,0.00029589,2]
[322199786,1712869970316,-763.21,0.00029589,2]
[322199787,1712869970325,-3486.04,0.00029589,2]
[322199788,1712869970334,-8034.42,0.00029589,2]
[322199789,1712869970343,-3850.53,0.00029589,2]
[322199790,1712869970353,-544.38,0.00029589,2]
[322199791,1712869970362,-1687.56,0.00029589,2]
[322199792,1712869970371,-500.0,0.00029589,2]
[322199793,1712869970380,-4101.12,0.00029589,2]
[322199794,1712869970392,-565.51,0.00029589,2]
[322199795,1712869970402,-2084.11,0.00029589,2]
[322199796,1712869970412,-544.26,0.00029589,2]
[322199797,1712869970422,-1782.79,0.00029589,2]
[322199798,1712869970433,-3404.95,0.00029589,2]
[322199799,1712869970443,-510.02,0.00029589,2]
[322199800,1712869970452,-500.0,0.00029589,2]
[322199801,1712869970462,-500.0,0.00029589,2]
[322199802,1712869970472,-2028.74,0.00029589,2]
[322199803,1712869970482,-500.0,0.00029589,2]
[322199804,1712869970491,-500.0,0.00029589,2]
[322199805,1712869970501,-3939.9,0.00029589,2]
[322199806,1712869970510,-733.75,0.00029589,2]
[322199807,1712869970520,-5901.28,0.00029589,2]
[322199808,1712869970529,-2166.88,0.00029589,2]
[322199809,1712869970753,-358.86154128,0.00029589,2]
[322199810,1712869970763,-722.6,0.00029589,2]
[322199811,1712869970773,-500.0,0.00029589,2]
[322199812,1712869970782,-538.95,0.00029589,2]
[322199813,1712869970792,-3339.86,0.00029589,2]
[322199814,1712869970802,-1774.88,0.00029589,2]
[322199815,1712869970812,-500.0,0.00029589,2]
[322199816,1712869970821,-896.99,0.00029589,2]
[322199817,1712869970831,-200.0,0.0002964,2]
[322199818,1712869970841,-1000.0,0.0002964,8]
[322199819,1712869970850,-500.0,0.0002964,2]
[322199820,1712869970859,-500.0,0.0002964,2]
[322199821,1712869970869,-154.06513536,0.00029777,2]
[322199822,1712869970879,-24163.57871673,0.000298,2]
[322199823,1712869970888,-150.66,0.000298,2]
[322199824,1712869970897,-150.0,0.000298,2]
[322199825,1712869970906,-7456.4457467,0.00029843,2]
[322199826,1712869970918,-6273.6446841,0.00029843,2]
[322199827,1712869970927,-71223.0650883,0.00029843,2]
[322199828,1712869970938,-150.0,0.00029856,2]
[322199829,1712869970947,-507.89,0.00029863,2]
[322199830,1712869970956,-590.86,0.00029863,2]
[322199831,1712869970966,-500.0,0.00029863,2]
[322199832,1712869970975,-805.44,0.00029863,2]
[322199833,1712869970984,-500.0,0.00029863,2]
[322199834,1712869970993,-500.0,0.00029863,2]
[322199835,1712869971007,-629.54,0.00029863,2]
[322199836,1712869971028,-500.0,0.00029863,2]
[322199837,1712869971037,-500.0,0.00029863,2]
[322199838,1712869971046,-500.0,0.00029863,2]
[322199839,1712869971055,-765.12,0.00029863,2]
[322199840,1712869971065,-500.0,0.00029863,2]
[322199841,1712869971074,-673.55,0.00029863,2]
[322199842,1712869971084,-500.0,0.00029863,2]
[322199843,1712869971093,-500.0,0.00029863,2]
[322199844,1712869971102,-500.0,0.00029863,2]
[322199845,1712869971112,-500.0,0.00029863,2]
[322199846,1712869971121,-1055.22,0.00029863,2]
[322199847,1712869971131,-838.26,0.00029863,2]
[322199848,1712869971140,-513.12,0.00029863,2]
[322199849,1712869971150,-500.0,0.00029863,2]
[322199850,1712869971159,-561.16,0.00029863,2]
[322199851,1712869971169,-520.88,0.00029863,2]
[322199852,1712869971178,-500.0,0.00029863,2]
[322199853,1712869971187,-532.8,0.00029863,2]
[322199854,1712869971196,-717.66,0.00029863,2]
[322199855,1712869971206,-569.96710502,0.00029863,2]
[322199856,1712869971215,-500.0,0.00029863,2]
[322199857,1712869971224,-956.54,0.00029863,2]
[322199858,1712869971233,-500.0,0.00029863,2]
[322199859,1712869971243,-527.16,0.00029863,2]
[322199860,1712869971252,-500.0,0.00029863,2]
[322199861,1712869971261,-491.09236597,0.00029863,2]
[322199862,1712869971271,-583.53,0.00029863,2]
[322199863,1712869971281,-500.0,0.00029863,2]
[322199864,1712869971290,-500.0,0.00029863,2]
[322199865,1712869971299,-500.0,0.00029863,2]
[322199866,1712869971309,-794.27,0.00029863,2]
[322199867,1712869971318,-775.81,0.00029863,2]
[322199868,1712869971328,-500.0,0.00029863,2]
[322199869,1712869971338,-1268.53,0.00029863,2]
[322199870,1712869971347,-579.81,0.00029863,2]
[322199871,1712869971357,-683.65,0.00029863,2]
[322199872,1712869971366,-500.0,0.00029863,2]
[322199873,1712869971377,-500.0,0.00029863,2]
[322199874,1712869971389,-500.0,0.00029863,2]
[322199875,1712869971399,-500.0,0.00029863,2]
[322199876,1712869971409,-1283.53,0.00029863,2]
[322199877,1712869971420,-500.0,0.00029863,2]
[322199878,1712869971430,-1242.22,0.00029863,2]
[322199879,1712869971441,-610.16,0.00029863,2]
[322199880,1712869971450,-686.6,0.00029863,2]
[322199881,1712869971461,-964.51,0.00029863,2]
[322199882,1712869971470,-552.23,0.00029863,2]
[322199883,1712869971480,-500.0,0.00029863,2]
[322199884,1712869971490,-500.0,0.00029863,2]
[322199885,1712869971500,-500.0,0.00029863,2]
[322199886,1712869971509,-500.0,0.00029863,2]
[322199887,1712869971518,-993.58,0.00029863,2]
[322199888,1712869971528,-500.0,0.00029863,2]
[322199889,1712869971540,-675.23,0.00029863,2]
[322199890,1712869971550,-1308.49,0.00029863,2]
[322199891,1712869971559,-703.03,0.00029863,2]
[322199892,1712869971569,-564.56,0.00029863,2]
[322199893,1712869971579,-560.79,0.00029863,2]
[322199894,1712869971588,-561.9,0.00029863,2]
[322199895,1712869971598,-500.0,0.00029863,2]
[322199896,1712869971607,-1067.51,0.00029863,2]
[322199897,1712869971616,-598.24,0.00029863,2]
[322199898,1712869971625,-691.29,0.00029863,2]
[322199899,1712869971635,-500.0,0.00029863,2]
[322199900,1712869971643,-500.0,0.00029863,2]
[322199901,1712869971653,-704.14,0.00029863,2]
[322199902,1712869971662,-645.96,0.00029863,2]
[322199903,1712869971671,-500.0,0.00029863,2]
[322199904,1712869971680,-1172.44,0.00029863,2]
[322199905,1712869971689,-500.0,0.00029863,2]
[322199906,1712869971698,-1403.78,0.00029863,2]
[322199907,1712869971707,-820.3,0.00029863,2]
[322199908,1712869971717,-1352.31,0.00029863,2]
[322199909,1712869971726,-868.58,0.00029863,2]
[322199910,1712869971735,-1263.1,0.00029863,2]
[322199911,1712869971745,-1192.54,0.00029863,2]
[322199912,1712869971754,-1391.45,0.00029863,2]
[322199913,1712869971763,-811.44,0.00029863,2]
[322199914,1712869971772,-609.69,0.00029863,2]
[322199915,1712869971781,-676.3,0.00029863,2]
[322199916,1712869971790,-540.39,0.00029863,2]
[322199917,1712869971800,-1771.03,0.00029863,2]
[322199918,1712869971809,-541.31,0.00029863,2]
[322199919,1712869971818,-1468.06,0.00029863,2]
[322199920,1712869971826,-862.27,0.00029863,2]
[322199921,1712869971835,-1183.63,0.00029863,2]
[322199922,1712869971844,-500.0,0.00029863,2]
[322199923,1712869971854,-500.0,0.00029863,2]
[322199924,1712869971863,-839.54,0.00029863,2]
[322199925,1712869971872,-500.0,0.00029863,2]
[322199926,1712869971881,-500.0,0.00029863,2]
[322199927,1712869971890,-1787.12,0.00029863,2]
[322199928,1712869971899,-500.0,0.00029863,2]
[322199929,1712869971908,-500.0,0.00029863,2]
[322199930,1712869971918,-1253.73,0.00029863,2]
[322199931,1712869971927,-735.73,0.00029863,2]
[322199932,1712869971935,-500.0,0.00029863,2]
[322199933,1712869971944,-1318.44,0.00029863,2]
[322199934,1712869971953,-1495.11,0.00029863,2]
[322199935,1712869971962,-700.59,0.00029863,2]
[322199936,1712869971971,-758.95,0.00029863,2]
[322199937,1712869971980,-521.21,0.00029863,2]
[322199938,1712869971989,-1654.67,0.00029863,2]
[322199939,1712869971998,-500.0,0.00029863,2]
[322199940,1712869972007,-638.47,0.00029863,2]
[322199941,1712869972016,-1164.2,0.00029863,2]
[322199942,1712869972025,-500.0,0.00029863,2]
[322199943,1712869972034,-949.05,0.00029863,2]
[322199944,1712869972043,-500.0,0.00029863,2]
[322199945,1712869972052,-1096.04,0.00029863,2]
[322199946,1712869972061,-777.64,0.00029863,2]
[322199947,1712869972071,-646.84,0.00029863,2]
[322199948,1712869972080,-958.72,0.00029863,2]
[322199949,1712869972089,-500.0,0.00029863,2]
[322199950,1712869972097,-683.7,0.00029863,2]
[322199951,1712869972106,-897.54,0.00029863,2]
[322199952,1712869972116,-500.0,0.00029863,2]
[322199953,1712869972126,-684.68,0.00029863,2]
[322199954,1712869972135,-500.0,0.00029863,2]
[322199955,1712869972144,-543.38,0.00029863,2]
[322199956,1712869972153,-809.17,0.00029863,2]
[322199957,1712869972163,-698.14,0.00029863,2]
[322199958,1712869972172,-1067.08,0.00029863,2]
[322199959,1712869972182,-479.05901451,0.00029863,2]
[322199960,1712869972191,-1021.38,0.00029863,2]
[322199961,1712869972200,-784.4,0.00029863,2]
[322199962,1712869972209,-1207.29,0.00029863,2]
[322199963,1712869972219,-853.95,0.00029863,2]
[322199964,1712869972228,-1154.75,0.00029863,2]
[322199965,1712869972237,-1500.39,0.00029863,2]
[322199966,1712869972246,-500.0,0.00029863,2]
[322199967,1712869972272,-1102.48,0.00029863,2]
[322199968,1712869972289,-1684.95,0.00029863,2]
[322199969,1712869972311,-864.47,0.00029863,2]
[322199970,1712869972330,-1050.08,0.00029863,2]
[322199971,1712869972349,-1060.45,0.00029863,2]
[322199972,1712869972369,-534.42,0.00029863,2]
[322199973,1712869972386,-727.49,0.00029863,2]
[322199974,1712869972405,-500.0,0.00029863,2]
[322199975,1712869972423,-598.73,0.00029863,2]
[322199976,1712869972444,-500.0,0.00029863,2]
[322199977,1712869972466,-1013.17,0.00029863,2]
[322199978,1712869972480,-500.0,0.00029863,2]
[322199979,1712869972498,-552.15,0.00029863,2]
[322199980,1712869972513,-722.75,0.00029863,2]
[322199981,1712869972527,-1454.96,0.00029863,2]
[322199982,1712869972542,-585.74,0.00029863,2]
[322199983,1712869972559,-600.91,0.00029863,2]
[322199984,1712869972574,-627.17,0.00029863,2]
[322199985,1712869972589,-1870.66,0.00029863,2]
[322199986,1712869972605,-921.94,0.00029863,2]
[322199987,1712869972619,-1288.35,0.00029863,2]
[322199988,1712869972634,-500.0,0.00029863,2]
[322199989,1712869972648,-670.72,0.00029863,2]
[322199990,1712869972663,-1052.23,0.00029863,2]
[322199991,1712869972678,-1720.31,0.00029863,2]
[322199992,1712869972693,-500.0,0.00029863,2]
[322199993,1712869972708,-2622.22,0.00029863,2]
[322199994,1712869972722,-1850.14,0.00029863,2]
[322199995,1712869972736,-500.0,0.00029863,2]
[322199996,1712869972752,-500.0,0.00029863,2]
[322199997,1712869972767,-500.0,0.00029863,2]
[322199998,1712869972782,-500.0,0.00029863,2]
[322199999,1712869972797,-869.29,0.00029863,2]
[322200000,1712869972811,-500.0,0.00029863,2]
[322200001,1712869972826,-722.11,0.00029863,2]
[322200002,1712869972841,-933.06,0.00029863,2]
[322200003,1712869972857,-500.0,0.00029863,2]
[322200004,1712869972871,-1172.68,0.00029863,2]
[322200005,1712869972885,-500.0,0.00029863,2]
[322200006,1712869972898,-500.0,0.00029863,2]
[322200007,1712869972912,-500.0,0.00029863,2]
[322200008,1712869972926,-1203.46,0.00029863,2]
[322200009,1712869972940,-993.8,0.00029863,2]
[322200010,1712869972953,-500.0,0.00029863,2]
[322200011,1712869972967,-500.0,0.00029863,2]
[322200012,1712869972981,-150.0,0.00029863,2]
[322200013,1712869972994,-1318.86,0.00029863,2]
[322200014,1712869973008,-879.12,0.00029863,2]
[322200015,1712869973022,-1664.67,0.00029863,2]
[322200016,1712869973036,-500.0,0.00029863,2]
[322200017,1712869973050,-553.15,0.00029863,2]
[322200018,1712869973063,-916.81,0.00029863,2]
[322200019,1712869973077,-923.4,0.00029863,2]
[322200020,1712869973091,-1597.09,0.00029863,2]
[322200021,1712869973104,-500.0,0.00029863,2]
[322200022,1712869973117,-500.0,0.00029863,2]
[322200023,1712869973131,-500.0,0.00029863,2]
[322200024,1712869973145,-500.0,0.00029863,2]
[322200025,1712869973159,-500.0,0.00029863,2]
[322200026,1712869973173,-1225.4,0.00029863,2]
[322200027,1712869973187,-500.0,0.00029863,2]
[322200028,1712869973201,-1736.6,0.00029863,2]
[322200029,1712869973215,-1687.78,0.00029863,2]
[322200030,1712869973228,-533.65,0.00029863,2]
[322200031,1712869973241,-892.21,0.00029863,2]
[322200032,1712869973254,-698.09,0.00029863,2]
[322200033,1712869973267,-500.0,0.00029863,2]
[322200034,1712869973281,-500.0,0.00029863,2]
[322200035,1712869973295,-1618.97,0.00029863,2]
[322200036,1712869973308,-500.0,0.00029863,2]
[322200037,1712869973322,-500.0,0.00029863,2]
[322200038,1712869973336,-998.14,0.00029863,2]
[322200039,1712869973350,-500.0,0.00029863,2]
[322200040,1712869973364,-1890.51,0.00029863,2]
[322200041,1712869973377,-827.22,0.00029863,2]
[322200042,1712869973394,-500.0,0.00029863,2]
[322200043,1712869973407,-500.0,0.00029863,2]
[322200044,1712869973421,-500.0,0.00029863,2]
[322200045,1712869973436,-1646.03,0.00029863,2]
[322200046,1712869973450,-911.48,0.00029863,2]
[322200047,1712869973465,-767.01,0.00029863,2]
[322200048,1712869973479,-1116.76,0.00029863,2]
[322200049,1712869973494,-570.82,0.00029863,2]
[322200050,1712869973509,-1022.77,0.00029863,2]
[322200051,1712869973524,-831.5,0.00029863,2]
[322200052,1712869973537,-680.97,0.00029863,2]
[322200053,1712869973552,-500.0,0.00029863,2]
[322200054,1712869973567,-500.0,0.00029863,2]
[322200055,1712869973581,-752.98,0.00029863,2]
[322200056,1712869973595,-500.0,0.00029863,2]
[322200057,1712869973608,-1499.79,0.00029863,2]
[322200058,1712869973622,-814.1,0.00029863,2]
[322200059,1712869973636,-7400.19,0.00029863,2]
[322200060,1712869973649,-1023.14,0.00029863,2]
[322200061,1712869973668,-700.72,0.00029863,2]
[322200062,1712869973684,-500.0,0.00029863,2]
[322200063,1712869973698,-950.09,0.00029863,2]
[322200064,1712869973713,-1871.77,0.00029863,2]
[322200065,1712869973726,-3724.71,0.00029863,2]
[322200066,1712869973739,-5395.14,0.00029863,2]
[322200067,1712869973752,-1464.27,0.00029863,2]
[322200068,1712869973765,-978.66,0.00029863,2]
[322200069,1712869973779,-500.0,0.00029863,2]
[322200070,1712869973794,-693.58,0.00029863,2]
[322200071,1712869973810,-984.51,0.00029863,2]
[322200072,1712869973825,-500.0,0.00029863,2]
[322200073,1712869973840,-500.0,0.00029863,2]
[322200074,1712869973854,-4620.04,0.00029863,2]
[322200075,1712869973867,-1300.92,0.00029863,2]
[322200076,1712869973881,-934.17,0.00029863,2]
[322200077,1712869973896,-1543.03,0.00029863,2]
[322200078,1712869973910,-5425.41,0.00029863,2]
[322200079,1712869973926,-500.0,0.00029863,2]
[322200080,1712869973941,-1214.31,0.00029863,2]
[322200081,1712869973956,-788.68,0.00029863,2]
[322200082,1712869973972,-613.33,0.00029863,2]
[322200083,1712869973986,-500.0,0.00029863,2]
[322200084,1712869974000,-827.37,0.00029863,2]
[322200085,1712869974014,-500.0,0.00029863,2]
[322200086,1712869974029,-1593.55,0.00029863,2]
[322200087,1712869974042,-1948.7,0.00029863,2]
[322200088,1712869974056,-500.0,0.00029863,2]
[322200089,1712869974071,-9749.83,0.00029863,2]
[322200090,1712869974085,-625.26,0.00029863,2]
[322200091,1712869974098,-2131.76,0.00029863,2]
[322200092,1712869974111,-500.0,0.00029863,2]
[322200093,1712869974124,-1560.14,0.00029863,2]
[322200094,1712869974137,-1518.32,0.00029863,2]
[322200095,1712869974151,-661.44,0.00029863,2]
[322200096,1712869974164,-1413.3,0.00029863,2]
[322200097,1712869974178,-5230.96,0.00029863,2]
[322200098,1712869974191,-2479.01,0.00029863,2]
[322200099,1712869974204,-500.0,0.00029863,2]
[322200100,1712869974219,-3647.95,0.00029863,2]
[322200101,1712869974236,-1464.2,0.00029863,2]
[322200102,1712869974249,-1527.36,0.00029863,2]
[322200103,1712869974263,-1358.23,0.00029863,2]
[322200104,1712869974277,-1020.16,0.00029863,2]
[322200105,1712869974291,-668.8,0.00029863,2]
[322200106,1712869974305,-11162.19,0.00029863,2]
[322200107,1712869974319,-41084.78,0.00029863,2]
[322200108,1712869974333,-3874.31,0.00029863,2]
[322200109,1712869974347,-500.0,0.00029863,2]
[322200110,1712869974361,-740.63,0.00029863,2]
[322200111,1712869974374,-500.0,0.00029863,2]
[322200112,1712869974391,-500.0,0.00029863,2]
[322200113,1712869974405,-548.57,0.00029863,2]
[322200114,1712869974419,-7785.82,0.00029863,2]
[322200115,1712869974432,-1513.09,0.00029863,2]
[322200116,1712869974447,-567.17,0.00029863,2]
[322200117,1712869974461,-3631.93,0.00029863,2]
[322200118,1712869974477,-8421.98,0.00029863,2]
[322200119,1712869974492,-3207.81,0.00029863,2]
[322200120,1712869974505,-2311.09,0.00029863,2]
[322200121,1712869974518,-12662.48,0.00029863,2]
[322200122,1712869974532,-500.0,0.00029863,2]
[322200123,1712869974546,-921.98,0.00029863,2]
[322200124,1712869974901,-500.0,0.00029863,2]
[322200125,1712869974930,-1525.4,0.00029863,2]
[322200126,1712869974939,-209.61474945,0.00029863,2]
[322200127,1712869974949,-1851.69,0.00029863,2]
[322200128,1712869974957,-7402.21,0.00029863,2]
[322200129,1712869974967,-3131.37,0.00029863,2]
[322200130,1712869974976,-875.02,0.00029863,2]
[322200131,1712869974985,-2709.87,0.00029863,2]
[322200132,1712869974994,-500.0,0.00029863,2]
[322200133,1712869975003,-1503.27,0.00029863,2]
[322200134,1712869975012,-2499.54,0.00029863,2]
[322200135,1712869975021,-650.21,0.00029863,2]
[322200136,1712869975030,-5388.34,0.00029863,2]
[322200137,1712869975039,-1676.04,0.00029863,2]
[322200138,1712869975047,-2309.38,0.00029863,2]
[322200139,1712869975056,-643.01,0.00029863,2]
[322200140,1712869975065,-5653.29,0.00029863,2]
[322200141,1712869975073,-928.47,0.00029863,2]
[322200142,1712869975082,-1703.86,0.00029863,2]
[322200143,1712869975092,-790.7,0.00029863,2]
[322200144,1712869975101,-500.0,0.00029863,2]
[322200145,1712869975110,-2381.75,0.00029863,2]
[322200146,1712869975119,-852.74,0.00029863,2]
[322200147,1712869975128,-2994.14,0.00029863,2]
[322200148,1712869975137,-500.0,0.00029863,2]
[322200149,1712869975146,-4680.33,0.00029863,2]
[322200150,1712869975154,-21256.33,0.00029863,2]
[322200151,1712869975164,-2204.86,0.00029863,2]
[322200152,1712869975174,-989.07,0.00029863,2]
[322200153,1712869975183,-5675.36,0.00029863,2]
[322200154,1712869975193,-660.51,0.00029863,2]
[322200155,1712869975202,-2867.21,0.00029863,2]